bitfinex/quotes_BTCUSD_20240905
["timestamp","ask_amount","ask_price","bid_price","bid_amount"]
[1725554485786,0.354528,56413.0,56407.0,0.4255738]
[1725554486230,0.177271,56411.0,56407.0,0.4255738]
[1725554486494,0.177267,56413.0,56407.0,0.4255738]
[1725554486708,0.177271,56411.0,56407.0,0.4255738]
[1725554486926,0.177273,56410.0,56407.0,0.4255738]
[1725554487164,0.354533,56413.0,56407.0,0.4255738]
[1725554487165,0.177266,56413.0,56407.0,0.4255738]
[1725554487372,0.177268,56412.0,56407.0,0.4255738]
[1725554487581,0.002,56408.0,56407.0,0.4255738]
[1725554487819,0.002,56408.0,56407.0,0.2106]
[1725554488033,0.177275,56410.0,56407.0,0.2106]
[1725554488255,0.354549,56410.0,56407.0,0.1155]
[1725554488467,0.354549,56410.0,56407.0,0.006]
[1725554488468,0.177279,56408.0,56407.0,0.006]
[1725554488686,0.177279,56408.0,56407.0,0.002]
[1725554488907,0.177279,56408.0,56403.0,0.4385738]
[1725554489146,0.177279,56408.0,56404.0,0.17551096]
[1725554489349,0.531825,56410.0,56407.0,0.007]
[1725554489556,0.177277,56409.0,56407.0,0.007]
[1725554489889,0.177277,56409.0,56407.0,0.017]
[1725554490550,0.177277,56409.0,56407.0,0.007]
[1725554490960,0.177277,56409.0,56404.0,0.17551096]
[1725554491186,0.177279,56408.0,56404.0,0.17551096]
[1725554491387,0.177276,56409.0,56404.0,0.17551096]
[1725554491819,0.354549,56410.0,56407.0,0.008]
[1725554492016,0.177276,56409.0,56407.0,0.008]
[1725554492767,0.000816,56411.0,56407.0,0.008]
[1725554492972,0.178088,56411.0,56407.0,0.012]
[1725554493195,0.178088,56411.0,56407.0,0.004]
[1725554493836,0.000816,56411.0,56407.0,0.2189738]
[1725554494249,0.178087,56411.0,56407.0,0.2149738]
[1725554494448,0.178087,56411.0,56408.0,0.1166]
[1725554494449,0.000816,56411.0,56408.0,0.1166]
[1725554496396,0.00308587,56410.0,56408.0,0.1166]
[1725554496626,0.00308587,56410.0,56408.0,0.1226]
[1725554497388,0.00308587,56410.0,56408.0,0.1166]
[1725554497629,0.00308587,56410.0,56408.0,0.1246]
[1725554498104,0.00308587,56410.0,56408.0,0.1286]
[1725554498576,0.00308587,56410.0,56408.0,0.1246]
[1725554499034,0.00308587,56410.0,56408.0,0.1296]
[1725554499973,0.00308587,56410.0,56408.0,0.1166]
[1725554500202,0.00308587,56410.0,56408.0,0.1256]
[1725554501350,0.00308587,56410.0,56408.0,0.1316]
[1725554502090,0.18035987,56410.0,56408.0,0.1316]
[1725554502549,0.00308587,56410.0,56408.0,0.1316]
[1725554503389,0.10308587,56410.0,56408.0,0.1316]
[1725554503607,0.10390187,56410.0,56408.0,0.1316]
[1725554503817,0.10390187,56410.0,56408.0,0.308879]
[1725554504072,0.10390187,56410.0,56409.0,0.44488696]
[1725554504300,0.10390187,56410.0,56409.0,1.30349296]
[1725554504548,0.10390187,56410.0,56409.0,2.01259896]
[1725554504549,0.100816,56410.0,56409.0,2.01259896]
[1725554504984,0.100816,56410.0,56409.0,2.07741896]
[1725554505221,0.00082,56425.0,56421.0,1.3245658]
[1725554505467,0.00082,56425.0,56421.0,1.50007676]
[1725554506191,0.00082,56425.0,56421.0,1.51007676]
[1725554506883,0.00082,56425.0,56421.0,0.41291096]
[1725554507154,0.00082,56425.0,56421.0,0.57614896]
[1725554507611,0.00082,56425.0,56421.0,0.41291096]
[1725554508297,0.00082,56425.0,56421.0,0.95862596]
[1725554508718,0.00082,56425.0,56421.0,0.94462596]
[1725554508943,0.00082,56425.0,56421.0,0.93062596]
[1725554509153,0.00082,56425.0,56421.0,0.95562596]
[1725554511591,0.00082,56425.0,56421.0,0.2484]
[1725554511813,0.00082,56425.0,56421.0,0.42391096]
[1725554512028,0.00082,56425.0,56421.0,0.95562596]
[1725554512301,0.00082,56425.0,56421.0,0.60114896]
[1725554512796,0.178046,56425.0,56421.0,0.60114896]
[1725554513013,0.00082,56425.0,56421.0,0.2484]
[1725554513226,0.178055,56422.0,56421.0,0.1496]
[1725554513446,0.00082,56422.0,56421.0,0.1496]
[1725554514783,0.00082,56422.0,56421.0,0.32511096]
[1725554515433,0.10082,56422.0,56421.0,0.32511096]
[1725554517264,0.278055,56422.0,56421.0,0.32511096]
[1725554518156,0.10082,56422.0,56421.0,0.32511096]
[1725554519067,0.10082,56422.0,56421.0,0.50234896]
[1725554519290,0.10082,56422.0,56421.0,0.32511096]
[1725554519950,0.10082,56422.0,56421.0,0.95812596]
[1725554520680,0.10082,56422.0,56421.0,1.66707996]
[1725554521604,0.10082,56422.0,56421.0,1.69007996]
[1725554526696,0.10082,56422.0,56421.0,2.64600776]
[1725554526969,0.00082,56432.0,56429.0,0.78664]
[1725554527212,0.08032794,56433.0,56432.0,1.0035858]
[1725554527421,0.00082,56442.0,56441.0,1.834584]
[1725554527704,0.00082,56442.0,56441.0,2.22306876]
[1725554527934,0.4726,56464.0,56453.0,1.626246]
[1725554528148,0.00082,56467.0,56453.0,1.626246]
[1725554528149,0.00082,56467.0,56453.0,2.40663076]
[1725554528398,0.00082,56467.0,56466.0,0.187097]
[1725554528645,0.00082,56467.0,56466.0,1.27167676]
[1725554529142,0.00082,56467.0,56466.0,1.62587176]
[1725554529367,0.00082,56467.0,56466.0,2.00006676]
[1725554529603,0.00082,56467.0,56466.0,2.00706676]
[1725554529837,0.00082,56467.0,56466.0,1.99506676]
[1725554530305,0.00082,56467.0,56466.0,1.99706676]
[1725554530768,0.00082,56467.0,56466.0,1.99506676]
[1725554530998,0.00082,56467.0,56466.0,1.97506676]
[1725554531239,0.00082,56467.0,56466.0,1.63987176]
[1725554531470,0.00082,56467.0,56466.0,0.58650796]
[1725554531957,0.00082,56467.0,56466.0,0.36960796]
[1725554532651,0.00082,56467.0,56466.0,0.18551096]
[1725554532881,0.00082,56467.0,56466.0,0.19651096]
[1725554533122,0.177914,56467.0,56466.0,0.19651096]
[1725554533375,0.177914,56467.0,56466.0,0.021]
[1725554534110,0.177914,56467.0,56466.0,0.011]
[1725554534613,0.532103,56467.0,56466.0,0.011]
[1725554535093,0.177914,56467.0,56466.0,0.019]
[1725554535342,0.532103,56467.0,56466.0,0.019]
[1725554535583,0.886292,56467.0,56466.0,0.019]
[1725554536058,1.246681,56467.0,56466.0,0.019]
[1725554536535,0.538303,56467.0,56466.0,0.019]
[1725554536799,0.00082,56467.0,56466.0,0.314897]
[1725554537016,0.00082,56467.0,56466.0,0.1378]
[1725554537244,0.00082,56467.0,56466.0,0.306897]
[1725554537434,0.00382,56467.0,56466.0,0.1298]
[1725554537647,0.00382,56467.0,56466.0,0.306897]
[1725554537923,0.00382,56467.0,56466.0,0.1298]
[1725554537924,0.00082,56467.0,56466.0,0.1298]
[1725554538142,0.00082,56467.0,56466.0,0.93070296]
[1725554538355,0.00082,56467.0,56466.0,0.91970296]
[1725554538600,0.00082,56467.0,56466.0,0.56550796]
[1725554538832,0.00082,56467.0,56466.0,0.91970296]
[1725554538833,0.00182,56467.0,56466.0,0.91970296]
[1725554539039,0.00082,56467.0,56466.0,0.91970296]
[1725554539250,0.00082,56467.0,56466.0,0.82760296]
[1725554539470,0.00082,56467.0,56466.0,1.18179796]
[1725554539910,0.00082,56467.0,56466.0,0.82760296]
[1725554540826,0.00082,56467.0,56466.0,1.18879796]
[1725554541250,0.00082,56467.0,56466.0,1.18679796]
[1725554541688,0.00082,56467.0,56466.0,1.57399296]
[1725554541921,0.00082,56467.0,56466.0,1.19679796]
[1725554542581,0.00082,56467.0,56466.0,1.55099296]
[1725554543239,0.00082,56467.0,56466.0,2.03568796]
[1725554543667,0.00082,56467.0,56466.0,1.67149296]
[1725554543900,0.00082,56467.0,56466.0,1.64849296]
[1725554544634,0.00082,56467.0,56466.0,1.64149296]
[1725554544862,0.00082,56467.0,56466.0,0.18651096]
[1725554545084,0.354144,56475.0,56466.0,0.18651096]
[1725554545311,0.177075,56474.0,56470.0,0.177084]
[1725554545539,0.177075,56474.0,56468.0,0.354182]
[1725554545540,0.177076,56473.0,56468.0,0.354182]
[1725554545776,0.354121,56478.0,56473.0,0.177075]
[1725554545995,0.177878,56479.0,56472.0,0.354157]
[1725554546229,0.177878,56479.0,56471.0,0.1217]
[1725554546230,0.177063,56477.0,56473.0,0.177074]
[1725554546457,0.177061,56478.0,56473.0,0.177072]
[1725554546688,0.177063,56477.0,56473.0,0.177072]
[1725554546921,0.354123,56478.0,56471.0,0.47586]
[1725554546922,0.177067,56476.0,56472.0,0.177078]
[1725554547186,0.1032,56476.0,56466.0,0.004]
[1725554547405,0.531283,56467.0,56466.0,0.004]
[1725554547643,1.335661,56467.0,56466.0,0.004]
[1725554547879,1.342861,56467.0,56466.0,0.004]
[1725554548119,0.177124,56458.0,56452.0,0.1187]
[1725554548361,0.354233,56461.0,56453.0,0.17551096]
[1725554548570,0.1032,56467.0,56453.0,0.17551096]
[1725554548777,0.1032,56467.0,56453.0,0.35264796]
[1725554548778,0.177117,56460.0,56453.0,0.35264796]
[1725554548997,0.17712,56459.0,56453.0,0.17551096]
[1725554549250,0.354232,56461.0,56453.0,0.17551096]
[1725554549466,0.177123,56458.0,56453.0,0.17551096]
[1725554549687,0.354232,56461.0,56453.0,0.35264896]
[1725554549907,0.177123,56458.0,56453.0,0.17551096]
[1725554550573,0.354239,56459.0,56453.0,0.35264796]
[1725554550574,0.177119,56459.0,56453.0,0.35264796]
[1725554550785,0.354205,56465.0,56456.0,0.177128]
[1725554551031,0.1771,56466.0,56460.0,0.177115]
[1725554551261,0.177091,56468.0,56462.0,0.177107]
[1725554551485,0.177091,56468.0,56463.0,0.17551096]
[1725554551706,0.177094,56467.0,56463.0,0.17551096]
[1725554551939,0.000815,56467.0,56463.0,0.17551096]
[1725554552147,0.000815,56467.0,56466.0,0.177097]
[1725554552394,0.000815,56467.0,56466.0,0.35260796]
[1725554552627,0.000815,56467.0,56466.0,1.06099796]
[1725554552861,0.000815,56467.0,56466.0,0.70680296]
[1725554553334,0.000815,56467.0,56466.0,1.06099796]
[1725554553592,0.000815,56467.0,56466.0,0.70680296]
[1725554553816,0.000815,56467.0,56466.0,1.39367176]
[1725554554028,0.000715,56467.0,56466.0,1.39367176]
[1725554554260,0.000215,56467.0,56466.0,1.03947676]
[1725554554489,0.000215,56467.0,56466.0,0.82450296]
[1725554554708,0.177083,56471.0,56466.0,0.29321096]
[1725554554919,0.177079,56472.0,56468.0,0.17709]
[1725554555130,0.176579,56472.0,56469.0,0.17551096]
[1725554555337,0.176479,56472.0,56469.0,0.17551096]
[1725554555559,0.176079,56472.0,56469.0,0.17551096]
[1725554555770,0.175779,56472.0,56469.0,0.17551096]
[1725554555981,0.175279,56472.0,56469.0,0.17551096]
[1725554556167,0.177083,56471.0,56469.0,0.17551096]
[1725554556406,0.176583,56471.0,56469.0,0.17551096]
[1725554556623,0.27676585,56472.0,56469.0,0.17551096]
[1725554556847,0.176994,56467.0,56466.0,0.1407]
[1725554557055,0.176994,56467.0,56466.0,0.01]
[1725554557056,0.531183,56467.0,56466.0,0.01]
[1725554557277,0.177101,56465.0,56461.0,0.303912]
[1725554557494,0.708378,56467.0,56462.0,0.17551096]
[1725554557495,0.354189,56467.0,56462.0,0.17551096]
[1725554557711,0.53127,56469.0,56463.0,0.354213]
[1725554557920,0.53127,56469.0,56462.0,0.17551096]
[1725554557921,0.177084,56471.0,56465.0,0.3542]
[1725554558150,0.177084,56471.0,56467.0,0.177093]
[1725554558398,0.09968685,56472.0,56468.0,0.17551096]
[1725554558630,0.09968685,56472.0,56471.0,0.177082]
[1725554558842,0.09968685,56472.0,56471.0,1.29492096]
[1725554559052,0.09968685,56472.0,56471.0,1.64908496]
[1725554559283,0.09968685,56472.0,56471.0,1.27192096]
[1725554560839,0.09968685,56472.0,56471.0,1.27692096]
[1725554561271,0.09968685,56472.0,56471.0,1.28492096]
[1725554561704,0.09968685,56472.0,56471.0,0.48439296]
[1725554561918,0.09968685,56472.0,56471.0,0.013]
[1725554561919,1.33923585,56472.0,56471.0,0.013]
[1725554562130,0.98507885,56472.0,56471.0,0.013]
[1725554562347,0.27676485,56472.0,56471.0,0.013]
[1725554563023,0.27676485,56472.0,56471.0,0.18851096]
[1725554563024,0.09968685,56472.0,56471.0,0.18851096]
[1725554563526,0.09968685,56472.0,56471.0,0.36559296]
[1725554563743,0.09968685,56472.0,56471.0,0.18851096]
[1725554564177,0.000815,56472.0,56471.0,0.013]
[1725554564389,0.886207,56472.0,56471.0,0.013]
[1725554564620,1.343564,56472.0,56471.0,0.013]
[1725554564841,1.350764,56472.0,56471.0,0.013]
[1725554565513,0.893407,56472.0,56471.0,0.013]
[1725554565734,0.886207,56472.0,56471.0,0.013]
[1725554565958,0.177893,56472.0,56471.0,0.013]
[1725554566184,0.886207,56472.0,56471.0,0.013]
[1725554566430,0.53205,56472.0,56471.0,0.013]
[1725554567445,0.000815,56472.0,56471.0,0.18851096]
[1725554568144,0.000815,56472.0,56471.0,0.18847007]
[1725554568813,0.886207,56472.0,56471.0,0.01295911]
[1725554570124,1.356564,56472.0,56471.0,0.01295911]
[1725554570352,1.253364,56472.0,56471.0,0.01295911]
[1725554570577,1.240364,56472.0,56471.0,0.01295911]
[1725554572828,1.24344747,56472.0,56471.0,0.01295911]
[1725554574837,1.9153843,56472.0,56471.0,0.01295911]
[1725554575974,1.9053843,56472.0,56471.0,0.008]
[1725554576192,0.177113,56461.0,56460.0,0.00163]
[1725554576420,0.885565,56461.0,56460.0,0.00163]
[1725554576636,1.44447775,56461.0,56460.0,0.00163]
[1725554576866,1.79870375,56461.0,56460.0,0.00163]
[1725554577084,1.91190375,56461.0,56460.0,0.00163]
[1725554577352,1.91517897,56461.0,56460.0,1.2e-07]
[1725554577595,1.91517897,56461.0,56460.0,0.00700012]
[1725554577872,1.91517897,56461.0,56460.0,1.2e-07]
[1725554577873,1.45775297,56461.0,56460.0,1.2e-07]
[1725554578135,0.73630097,56461.0,56460.0,1.2e-07]
[1725554578346,0.985565,56461.0,56460.0,1.2e-07]
[1725554578577,0.354207,56465.0,56460.0,1.2e-07]
[1725554578790,0.1162,56469.0,56460.0,1.2e-07]
[1725554578791,0.177113,56461.0,56460.0,1.2e-07]
[1725554579035,0.177113,56461.0,56460.0,0.00100012]
[1725554579269,0.277113,56461.0,56460.0,0.00500012]
[1725554579488,0.277113,56461.0,56460.0,1.2e-07]
[1725554579713,0.281113,56461.0,56460.0,1.2e-07]
[1725554579937,0.104,56461.0,56460.0,1.2e-07]
[1725554580154,0.104,56461.0,56460.0,0.30331108]
[1725554580399,0.104,56461.0,56460.0,0.57932708]
[1725554580611,0.281113,56461.0,56460.0,0.40221108]
[1725554580836,0.281113,56461.0,56460.0,0.40421108]
[1725554581043,0.104,56461.0,56460.0,0.58132708]
[1725554581455,0.104,56461.0,56460.0,0.40421108]
[1725554581681,0.104,56461.0,56460.0,1.28979308]
[1725554581900,0.104,56461.0,56460.0,1.64402608]
[1725554582099,0.104,56461.0,56460.0,0.93556008]
[1725554582522,0.104,56461.0,56460.0,1.28979308]
[1725554583368,0.104,56461.0,56460.0,0.93556008]
[1725554584057,0.104,56461.0,56460.0,1.28979308]
[1725554584275,0.104,56461.0,56460.0,0.93556008]
[1725554584496,0.104,56461.0,56460.0,1.28979308]
[1725554587803,0.104,56461.0,56460.0,0.93556008]
[1725554588624,0.104,56461.0,56460.0,0.58132708]
[1725554588832,0.104,56461.0,56460.0,0.40581612]
[1725554589050,0.104,56461.0,56460.0,0.22870012]
[1725554589522,0.989565,56461.0,56460.0,0.00600012]
[1725554590172,0.635339,56461.0,56460.0,0.00600012]
[1725554590391,0.281113,56461.0,56460.0,0.00600012]
[1725554590612,0.635339,56461.0,56460.0,0.00600012]
[1725554591089,0.281113,56461.0,56460.0,0.00600012]
[1725554591517,0.104,56461.0,56460.0,0.58322708]
[1725554591948,0.281113,56461.0,56460.0,0.00600012]
[1725554592199,0.635339,56461.0,56460.0,0.00600012]
[1725554592623,0.281113,56461.0,56460.0,0.00600012]
[1725554592830,0.104,56461.0,56460.0,0.00600012]
[1725554593278,0.635339,56461.0,56460.0,0.00600012]
[1725554593492,0.989565,56461.0,56460.0,0.00600012]
[1725554594148,1.356791,56461.0,56460.0,0.00600012]
[1725554595480,0.635339,56461.0,56460.0,0.00600012]
[1725554595683,0.989565,56461.0,56460.0,0.00600012]
[1725554595913,0.635339,56461.0,56460.0,0.00600012]
[1725554596258,0.99264875,56461.0,56460.0,0.00600012]
[1725554596460,0.63842275,56461.0,56460.0,0.00600012]
[1725554598189,0.28419675,56461.0,56460.0,0.00600012]
[1725554598625,0.63923875,56461.0,56460.0,0.00600012]
[1725554600343,0.99346475,56461.0,56460.0,0.00600012]
[1725554600789,0.63923875,56461.0,56460.0,0.00600012]
[1725554601007,0.28501275,56461.0,56460.0,0.00600012]
[1725554601238,0.63923875,56461.0,56460.0,0.00600012]
[1725554602362,0.99346475,56461.0,56460.0,0.00600012]
[1725554602579,0.990381,56461.0,56460.0,0.00600012]
[1725554603024,1.344607,56461.0,56460.0,0.00600012]
[1725554603517,1.921833,56461.0,56460.0,0.00600012]
[1725554603702,2.02332641,56461.0,56460.0,0.00600012]
[1725554603941,2.37755241,56461.0,56460.0,0.00600012]
[1725554604172,2.37955241,56461.0,56460.0,4.1e-07]
[1725554604398,2.40255241,56461.0,56460.0,4.1e-07]
[1725554604799,2.40255241,56461.0,56440.0,0.2236]
[1725554604800,1.604215,56454.0,56440.0,0.2236]
[1725554605017,1.79570841,56454.0,56440.0,0.2236]
[1725554605477,1.43642551,56454.0,56440.0,0.2336]
[1725554605672,1.61356051,56454.0,56440.0,0.2336]
[1725554606141,1.73656051,56454.0,56440.0,0.2336]
[1725554606854,1.73856051,56454.0,56440.0,0.2336]
[1725554607943,1.26129051,56454.0,56440.0,0.1057]
[1725554608164,0.55275051,56454.0,56453.0,9.10373]
[1725554608607,0.56594172,56454.0,56453.0,9.10373]
[1725554608825,0.92021172,56454.0,56453.0,9.10373]
[1725554609223,0.55275051,56454.0,56453.0,9.00163]
[1725554609443,0.279135,56454.0,56453.0,9.00163]
[1725554609678,0.633405,56454.0,56453.0,9.00163]
[1725554610382,0.002,56454.0,56453.0,9.543045]
[1725554610598,0.002,56454.0,56453.0,9.01163]
[1725554611038,0.002,56454.0,56453.0,9.543045]
[1725554611691,0.002,56454.0,56453.0,9.188768]
[1725554611899,0.002,56454.0,56453.0,9.01163]
[1725554612536,0.533405,56454.0,56453.0,9.00163]
[1725554612773,1.241945,56454.0,56453.0,9.00163]
[1725554613830,1.341945,56454.0,56453.0,9.00163]
[1725554614062,1.5729188,56454.0,56453.0,9.00163]
[1725554614273,2.0271888,56454.0,56453.0,9.00163]
[1725554615372,2.11824891,56454.0,56453.0,9.00163]
[1725554615826,2.48602979,56454.0,56453.0,9.00163]
[1725554616049,2.61802979,56454.0,56453.0,9.00163]
[1725554616502,2.26175979,56454.0,56453.0,9.00163]
[1725554616714,2.25975979,56454.0,56453.0,9.00163]
[1725554616935,2.27975979,56454.0,56453.0,9.00163]
[1725554617161,2.28175979,56454.0,56453.0,9.00163]
[1725554617364,2.63602979,56454.0,56453.0,9.00163]
[1725554617585,2.63602979,56454.0,56453.0,9.00263]
[1725554617791,2.83212979,56454.0,56453.0,9.00263]
[1725554618017,2.64502979,56454.0,56453.0,9.00263]
[1725554618196,2.97330479,56454.0,56453.0,9.00163]
[1725554618410,3.37537859,56454.0,56453.0,8.86493779]
[1725554618661,3.52016649,56454.0,56453.0,6.96429035]
[1725554618930,3.61140528,56454.0,56453.0,6.77455835]
[1725554619150,3.99044114,56454.0,56453.0,6.77455835]
[1725554619389,2.87237553,56454.0,56453.0,6.10031914]
[1725554619608,3.08134933,56454.0,56453.0,6.09931914]
[1725554619831,3.65059313,56454.0,56453.0,6.09931914]
[1725554620050,3.65059313,56454.0,56453.0,6.10031914]
[1725554620051,3.65659313,56454.0,56453.0,6.10031914]
[1725554620271,3.62882727,56454.0,56453.0,6.10031914]
[1725554620506,3.05958347,56454.0,56453.0,6.10031914]
[1725554620736,3.23514373,56454.0,56453.0,6.10031914]
[1725554620951,3.23514373,56454.0,56453.0,6.10131914]
[1725554621207,3.08357847,56454.0,56453.0,5.54904522]
[1725554621427,3.07757847,56454.0,56453.0,5.46869825]
[1725554621640,3.07057847,56454.0,56453.0,5.46236652]
[1725554621871,7.69598747,56454.0,56453.0,5.27989565]
[1725554622094,7.69598747,56454.0,56453.0,5.24080565]
[1725554622095,7.70298747,56454.0,56453.0,5.24080565]
[1725554622313,7.88454773,56454.0,56453.0,5.24180565]
[1725554622460,7.88454773,56454.0,56453.0,5.19217565]
[1725554622876,7.88454773,56454.0,56453.0,4.79013078]
[1725554623077,7.93122089,56454.0,56453.0,4.75467587]
[1725554623309,6.60275465,56454.0,56453.0,4.74067587]
[1725554623464,2.92354539,56454.0,56453.0,4.69131587]
[1725554623675,2.56927539,56454.0,56453.0,4.69131587]
[1725554623882,2.46452572,56454.0,56453.0,4.69131587]
[1725554624085,2.81879572,56454.0,56453.0,4.69131587]
[1725554624305,2.88712335,56454.0,56453.0,4.69131587]
[1725554624501,2.81879572,56454.0,56453.0,4.69131587]
[1725554624712,2.0601888,56454.0,56453.0,4.69131587]
[1725554624923,1.845215,56454.0,56453.0,4.69131587]
[1725554625377,2.001775,56454.0,56453.0,4.69131587]
[1725554625586,1.845215,56454.0,56453.0,4.69131587]
[1725554626279,1.868215,56454.0,56453.0,4.69131587]
[1725554626960,1.866215,56454.0,56453.0,4.69131587]
[1725554627180,1.850215,56454.0,56453.0,4.69131587]
[1725554627617,1.352945,56454.0,56453.0,4.69131587]
[1725554628451,1.345945,56454.0,56453.0,4.69031587]
[1725554628654,1.339945,56454.0,56453.0,4.68931587]
[1725554628866,1.452945,56454.0,56453.0,4.69131587]
[1725554632059,1.47148166,56454.0,56453.0,4.69131587]
[1725554633174,1.47348166,56454.0,56453.0,4.69131587]
[1725554634198,2.17480866,56454.0,56453.0,4.69131587]
[1725554634381,1.91876349,56454.0,56453.0,4.69131587]
[1725554634657,1.91957949,56454.0,56453.0,4.69131587]
[1725554635970,2.27384949,56454.0,56453.0,4.69131587]
[1725554636174,1.91957949,56454.0,56453.0,4.69131587]
[1725554636830,1.91757949,56454.0,56453.0,4.69131587]
[1725554637683,1.91957949,56454.0,56453.0,4.69131587]
[1725554637921,1.91757949,56454.0,56453.0,4.69131587]
[1725554639983,1.91957949,56454.0,56453.0,4.69131587]
[1725554640524,3.09850024,56454.0,56453.0,4.69131587]
[1725554640806,2.39434049,56454.0,56453.0,4.69131587]
[1725554641028,1.93757949,56454.0,56453.0,4.69131587]
[1725554641254,1.89457949,56454.0,56453.0,4.81861587]
[1725554641700,1.91457949,56454.0,56453.0,4.81861587]
[1725554641958,1.89457949,56454.0,56453.0,4.81861587]
[1725554642179,1.91457949,56454.0,56453.0,4.81861587]
[1725554642605,1.91657949,56454.0,56453.0,4.81861587]
[1725554642819,1.91457949,56454.0,56453.0,4.81861587]
[1725554643048,1.89457949,56454.0,56453.0,4.91681587]
[1725554643250,1.82656766,56454.0,56453.0,4.91681587]
[1725554643667,1.89479081,56454.0,56453.0,4.91681587]
[1725554649781,1.89479081,56454.0,56453.0,4.69131587]
[1725554649782,1.89679081,56454.0,56453.0,4.69131587]
[1725554650747,1.89479081,56454.0,56453.0,4.69131587]
[1725554651195,1.47229766,56454.0,56453.0,4.93351587]
[1725554651418,1.453761,56454.0,56453.0,4.93351587]
[1725554651649,1.099491,56454.0,56453.0,4.93351587]
[1725554651876,1.808031,56454.0,56453.0,4.93351587]
[1725554652131,1.808031,56454.0,56453.0,4.69131587]
[1725554652340,1.810031,56454.0,56453.0,4.69131587]
[1725554652579,1.808031,56454.0,56453.0,4.69131587]
[1725554652983,1.810031,56454.0,56453.0,4.69131587]
[1725554654282,1.808031,56454.0,56453.0,4.69131587]
[1725554655766,1.453761,56454.0,56453.0,4.92581587]
[1725554657098,1.801031,56454.0,56453.0,4.92481587]
[1725554657373,1.806031,56454.0,56453.0,4.92581587]
[1725554657586,1.451761,56454.0,56453.0,4.92581587]
[1725554657807,1.440761,56454.0,56453.0,4.92381587]
[1725554658245,1.449761,56454.0,56453.0,4.92581587]
[1725554658674,1.445761,56454.0,56453.0,4.92481587]
[1725554658901,1.449761,56454.0,56453.0,4.92481587]
[1725554659822,1.095491,56454.0,56453.0,4.92481587]
[1725554660053,0.641221,56454.0,56453.0,4.93481587]
[1725554660281,0.995491,56454.0,56453.0,4.93481587]
[1725554660740,0.986491,56454.0,56453.0,4.93381587]
[1725554661204,0.994491,56454.0,56453.0,4.93381587]
[1725554661648,0.637221,56454.0,56453.0,4.93381587]
[1725554661861,0.641221,56454.0,56453.0,4.93381587]
[1725554662537,0.109816,56454.0,56453.0,5.11095387]
[1725554663092,0.109816,56454.0,56453.0,5.46523087]
[1725554663327,0.105816,56454.0,56453.0,5.11095387]
[1725554663538,0.106816,56454.0,56453.0,4.93381587]
[1725554663972,0.100816,56454.0,56453.0,4.93381587]
[1725554664188,0.100816,56454.0,56453.0,4.93881587]
[1725554664397,0.100816,56454.0,56453.0,4.94081587]
[1725554669425,0.100816,56454.0,56453.0,5.11795387]
[1725554669848,0.100816,56454.0,56453.0,5.47223087]
[1725554670221,0.100816,56454.0,56453.0,4.94081587]
[1725554670942,0.632221,56454.0,56453.0,4.93081587]
[1725554671093,1.340761,56454.0,56453.0,4.93081587]
[1725554672614,0.986491,56454.0,56453.0,4.93081587]
[1725554672838,0.632221,56454.0,56453.0,5.15578967]
[1725554674684,0.632221,56454.0,56453.0,4.94081587]
[1725554674885,0.986491,56454.0,56453.0,4.94081587]
[1725554675084,0.277951,56454.0,56453.0,5.15578967]
[1725554675369,0.100816,56454.0,56453.0,5.15578967]
[1725554675575,0.100816,56454.0,56453.0,5.33292767]
[1725554675997,0.100816,56454.0,56453.0,5.15578967]
[1725554676196,0.100816,56454.0,56453.0,5.33292767]
[1725554676711,0.100816,56454.0,56453.0,5.15578967]
[1725554677285,0.100816,56454.0,56453.0,5.33292767]
[1725554680887,0.277951,56454.0,56453.0,5.15578967]
[1725554681094,0.632221,56454.0,56453.0,4.93081587]
[1725554681315,1.340761,56454.0,56453.0,4.83361587]
[1725554681532,1.340761,56454.0,56453.0,4.69631587]
[1725554682617,1.340761,56454.0,56453.0,4.69431587]
[1725554683092,1.345761,56454.0,56453.0,4.69531587]
[1725554683338,0.105816,56454.0,56453.0,4.97271587]
[1725554683578,0.100816,56454.0,56453.0,5.50313087]
[1725554683789,0.100816,56454.0,56453.0,6.38719583]
[1725554683962,0.100816,56454.0,56453.0,5.67364183]
[1725554684191,0.100816,56454.0,56453.0,6.02791883]
[1725554684402,0.104816,56454.0,56453.0,6.02791883]
[1725554684604,0.100816,56454.0,56453.0,6.02791883]
[1725554685044,0.100816,56454.0,56453.0,6.02891883]
[1725554685045,0.105816,56454.0,56453.0,6.02891883]
[1725554685255,0.105816,56454.0,56453.0,6.04291883]
[1725554685402,0.100816,56454.0,56453.0,6.04191883]
[1725554685977,0.100816,56454.0,56453.0,6.41019583]
[1725554686828,0.5,56460.0,56453.0,6.41019583]
[1725554686829,0.5,56460.0,56459.0,1.151997]
[1725554687096,0.5,56460.0,56459.0,1.54248176]
[1725554687303,0.5,56460.0,56459.0,1.18824276]
[1725554687736,0.5,56460.0,56459.0,1.0127318]
[1725554688131,0.5,56460.0,56459.0,1.0207318]
[1725554688394,0.5,56460.0,56459.0,1.0307318]
[1725554689739,0.5,56460.0,56459.0,0.4993738]
[1725554691287,0.5,56460.0,56459.0,0.6764928]
[1725554691500,0.5,56460.0,56459.0,0.4993738]
[1725554691722,1.208466,56460.0,56459.0,0.2844]
[1725554691965,1.385582,56460.0,56459.0,0.2844]
[1725554692189,0.677116,56460.0,56459.0,0.2844]
[1725554692409,0.5,56460.0,56459.0,0.2844]
[1725554692623,0.677116,56460.0,56459.0,0.2844]
[1725554692839,1.031349,56460.0,56459.0,0.2844]
[1725554693076,0.500816,56460.0,56459.0,0.2844]
[1725554693500,1.032165,56460.0,56459.0,0.2844]
[1725554693713,1.386398,56460.0,56459.0,0.2844]
[1725554693921,1.032165,56460.0,56459.0,0.2844]
[1725554695181,1.386398,56460.0,56459.0,0.2844]
[1725554695830,1.740631,56460.0,56459.0,0.018]
[1725554696851,1.815731,56460.0,56459.0,0.018]
[1725554697029,1.915731,56460.0,56459.0,0.018]
[1725554697223,1.98337409,56460.0,56459.0,0.018]
[1725554697639,1.98337409,56460.0,56459.0,0.008]
[1725554697957,1.90927409,56460.0,56459.0,0.008]
[1725554698130,1.90927409,56460.0,56453.0,4.68931587]